bitfinex-derivatives/quotes_ETHF0:USTF0_20260207
["timestamp","ask_amount","ask_price","bid_price","bid_amount"]
[1770466497978,10.34926138,2041.7,2040.7,10.97046379]
[1770466500382,11.30553837,2041.5,2040.3,10.9654339]
[1770466500688,11.30553837,2041.3,2040.6,10.9654339]
[1770466501386,11.31151958,2041.3,2040.6,10.96955044]
[1770466502283,11.31151958,2041.3,2040.6,0.00411654]
[1770466502488,11.30553837,2041.1,2040.3,10.9654339]
[1770466502890,11.30553837,2041.1,2040.1,11.2107539]
[1770466503583,16.70716402,2041.0,2040.1,0.00488165]
[1770466503779,11.30553837,2040.5,2039.3,10.9654339]
[1770466503978,11.30553837,2040.5,2039.2,0.31679327]
[1770466504182,11.30553837,2040.5,2039.1,10.9654339]
[1770466504576,11.30553837,2040.3,2039.1,11.27843702]
[1770466504780,11.30553837,2040.1,2039.1,0.0047142]
[1770466505381,11.55086837,2040.1,2038.5,10.9654339]
[1770466505986,11.55086837,2040.1,2038.4,10.22106745]
[1770466506185,11.55086837,2040.1,2038.3,11.71464246]
[1770466506381,10.82141487,2039.4,2038.3,0.00561429]
[1770466506584,10.82513942,2039.4,2038.3,0.00561429]
[1770466506980,10.82513942,2039.4,2037.9,11.71464246]
[1770466507586,11.07054942,2039.4,2037.9,11.71464246]
[1770466507787,10.82141487,2039.0,2037.6,11.71464246]
[1770466507985,10.82141487,2039.0,2037.6,0.00609001]
[1770466508390,10.82141487,2039.0,2037.6,11.72073247]
[1770466508785,10.82141487,2039.0,2037.6,0.00609001]
[1770466509189,10.82141487,2039.0,2037.6,11.72073247]
[1770466510584,10.82141487,2039.0,2037.6,0.00609001]
[1770466510787,11.71714027,2038.8,2037.6,0.00609001]
[1770466511488,11.71714027,2038.8,2037.6,10.93405454]
[1770466513383,11.71714027,2041.5,2038.7,8.78310874]
[1770466513583,11.71714027,2042.0,2040.3,8.78310874]
[1770466513784,11.71714027,2042.0,2040.4,8.78310874]
[1770466513990,11.71714027,2042.0,2040.8,8.78310874]
[1770466514390,11.72069575,2042.0,2040.8,8.78912753]
[1770466514701,11.72069575,2042.0,2040.8,0.00601879]
[1770466515304,11.71714027,2041.7,2040.2,8.5745568]
[1770466516289,11.71714027,2041.2,2040.2,8.58084537]
[1770466516885,11.71714027,2041.2,2040.2,0.00628857]
[1770466517090,11.71714027,2041.2,2040.2,8.47218479]
[1770466518588,11.71714027,2041.9,2040.2,8.47218479]
[1770466519186,11.71714027,2041.8,2040.2,8.47218479]
[1770466519992,11.71714027,2041.6,2040.2,8.47218479]
[1770466522401,11.71714027,2041.4,2040.2,8.47218479]
[1770466525695,11.71714027,2041.2,2040.2,0.00628857]
[1770466526498,11.71714027,2041.0,2040.2,0.00628857]
[1770466526697,11.71714027,2041.0,2039.8,8.41424264]
[1770466526891,11.71714027,2041.0,2039.5,8.41424264]
[1770466527096,11.71714027,2040.8,2039.5,8.41424264]
[1770466527700,11.71714027,2041.0,2039.7,8.41424264]
[1770466530604,11.71714027,2041.6,2040.1,8.31332044]
[1770466531405,11.71714027,2041.5,2040.1,8.31332044]
[1770466532502,11.96227027,2041.7,2040.1,8.31332044]
[1770466532696,11.71714027,2041.7,2040.1,8.31332044]
[1770466533108,11.71714027,2041.9,2040.5,8.3211757]
[1770466533607,11.71714027,2041.9,2040.4,3.02786923]
[1770466533608,0.00355548,2042.0,2040.9,8.3211757]
[1770466533914,11.71714027,2042.4,2040.9,8.5663957]
[1770466534312,11.71714027,2043.1,2041.3,8.43693204]
[1770466534515,11.71714027,2042.7,2040.9,8.43693204]
[1770466535001,11.7210873,2042.7,2040.9,8.44087434]
[1770466535405,11.71714027,2042.6,2040.9,8.44087434]
[1770466535806,11.4117925,2042.5,2040.9,8.44087434]
[1770466536005,11.4117925,2042.2,2040.9,0.0039423]
[1770466536509,11.4117925,2042.0,2040.9,0.0039423]
[1770466536806,11.4117925,2042.0,2040.9,8.45450883]
[1770466539109,11.4117925,2042.6,2040.9,8.69972883]
[1770466539603,11.41573953,2042.7,2041.5,8.60430384]
[1770466540509,0.00394703,2042.7,2041.5,8.60430384]
[1770466542914,11.41573953,2042.7,2041.5,8.60430384]
[1770466543813,0.00394703,2042.7,2041.5,8.60430384]
[1770466544013,11.4117925,2043.0,2041.7,8.3063834]
[1770466544515,11.4117925,2043.9,2041.8,8.37980056]
[1770466544915,11.4117925,2043.9,2042.2,0.24507]
[1770466545214,11.41654306,2043.9,2042.3,8.37980056]
[1770466546315,11.41654306,2043.9,2042.5,8.50786761]
[1770466546614,11.41654306,2043.9,2042.5,8.75697471]
[1770466547614,11.41654306,2043.9,2042.9,8.50786761]
[1770466547615,0.00475056,2043.9,2042.9,8.50786761]
[1770466547821,11.4117925,2044.3,2042.9,8.75284761]
[1770466548022,11.4117925,2044.7,2043.1,8.50786761]
[1770466548419,11.4117925,2044.7,2042.5,2.79407161]
[1770466548622,11.4117925,2044.7,2042.9,8.46612825]
[1770466548913,11.4117925,2044.7,2042.5,0.0040771]
[1770466548914,11.41537041,2044.7,2043.1,8.46612825]
[1770466549120,11.4117925,2044.6,2043.1,8.71108825]
[1770466549327,11.4117925,2044.6,2043.3,8.46612825]
[1770466549515,0.00357791,2044.7,2043.3,8.71106825]
[1770466549814,11.41537041,2044.7,2043.3,8.71106825]
[1770466550017,11.41537041,2044.7,2043.5,8.46612825]
[1770466550220,0.00357791,2044.7,2043.5,8.71103825]
[1770466550417,11.4117925,2045.1,2043.7,8.54399797]
[1770466550921,11.4117925,2045.1,2043.7,8.78888797]
[1770466551524,11.41568899,2045.1,2043.7,8.78888797]
[1770466551823,0.00389649,2045.1,2044.1,8.54399797]
[1770466552120,11.41568899,2045.1,2044.1,8.54824983]
[1770466552719,13.8127925,2046.5,2045.0,3.02786923]
[1770466553025,11.4117925,2046.5,2045.1,8.78855708]
[1770466553428,11.4117925,2047.6,2046.1,8.78855708]
[1770466553629,0.00436426,2047.6,2046.2,1.12513]
[1770466553920,12.66931422,2049.7,2046.2,1.12513]
[1770466553921,11.4117925,2049.1,2047.5,11.60198333]
[1770466554120,11.4117925,2049.6,2048.2,11.60198333]
[1770466554520,11.4117925,2049.6,2048.5,11.60198333]
[1770466554718,0.19373116,2049.7,2048.8,11.60198333]
[1770466554922,11.4117925,2050.3,2049.1,11.60198333]
[1770466555120,11.4117925,2050.6,2049.1,11.60198333]
[1770466555320,11.4117925,2050.1,2049.1,11.60198333]
[1770466555619,11.4117925,2050.1,2048.7,11.60198333]
[1770466555820,2.99169777,2050.1,2048.7,11.60198333]
[1770466556120,3.5207,2052.5,2048.7,11.60198333]
[1770466556121,11.6555425,2053.3,2050.0,11.60198333]
[1770466556322,1.79828348,2053.5,2050.0,11.60198333]
[1770466556323,2.99571677,2053.4,2051.2,11.60198333]
[1770466556527,11.4117925,2053.6,2051.8,11.60198333]
[1770466556917,11.4117925,2052.9,2051.8,11.60609421]
[1770466557316,2.99571677,2052.8,2051.8,11.60609421]
[1770466557518,2.99571677,2052.8,2051.1,4.00463795]
[1770466557519,11.4117925,2052.5,2051.1,11.60198333]
[1770466557922,2.99571677,2051.2,2050.5,11.60198333]
[1770466558125,11.4117925,2051.3,2049.7,11.60198333]
[1770466558526,11.4117925,2050.5,2049.7,0.00631129]
[1770466558725,11.4117925,2050.6,2049.4,11.60198333]
[1770466559029,11.4117925,2050.2,2048.2,11.60198333]
[1770466559418,11.4117925,2049.8,2048.2,11.60198333]
[1770466559831,11.4117925,2049.6,2048.2,11.60671007]
[1770466560031,2.99571677,2049.5,2048.2,11.60671007]
[1770466560322,11.4117925,2051.0,2049.6,11.60198333]
[1770466560525,11.4117925,2050.6,2049.6,11.60198333]
[1770466561029,2.41627284,2050.5,2048.6,11.60198333]
[1770466561231,11.41615655,2050.5,2048.6,11.60198333]
[1770466561419,11.4117925,2050.8,2049.4,11.60198333]
[1770466562126,11.4117925,2051.9,2049.7,5.3243881]
[1770466562326,11.41782459,2051.9,2050.0,11.60198333]
[1770466562531,11.41782459,2051.9,2049.7,5.32919342]
[1770466562532,0.00603209,2051.9,2050.4,11.60198333]
[1770466562828,11.4117925,2052.7,2050.8,11.60198333]
[1770466563129,11.4117925,2053.1,2051.1,11.60198333]
[1770466563526,11.4117925,2053.1,2051.2,11.60198333]
[1770466563721,11.41622947,2053.1,2051.2,11.60557211]
[1770466563927,11.4117925,2052.7,2051.2,11.60557211]
[1770466564130,11.6556225,2052.7,2051.2,11.60557211]
[1770466564334,11.4117925,2051.9,2050.2,11.60198333]
[1770466564528,11.4117925,2050.9,2049.9,11.60198333]
[1770466564727,11.4117925,2052.1,2050.1,5.55047705]
[1770466564923,11.4117925,2051.6,2050.2,11.60198333]
[1770466565628,11.4168032,2051.6,2050.2,11.6069634]
[1770466566236,0.0050107,2051.6,2050.2,11.6069634]
[1770466566433,2.393,2053.3,2050.2,11.6069634]
[1770466566434,11.18676711,2054.0,2051.4,11.14310365]
[1770466566633,11.18676711,2053.8,2051.8,11.14310365]
[1770466566825,11.18676711,2054.8,2052.6,11.14310365]
[1770466567027,1.11908,2057.3,2052.5,4.00463795]
[1770466567028,4.00463795,2056.0,2053.5,11.14310365]
[1770466567232,11.18676711,2055.6,2053.9,11.14310365]
[1770466567430,4.00463795,2055.2,2053.9,11.14310365]
[1770466567627,15.19140506,2054.8,2053.0,11.14310365]
[1770466567832,11.18676711,2054.7,2053.0,11.14310365]
[1770466568136,11.18676711,2054.2,2053.0,0.00448971]
[1770466568329,0.20675578,2053.1,2051.9,11.14310365]
[1770466568530,11.18676711,2053.8,2051.9,11.14310365]
[1770466568732,0.20675578,2053.7,2052.3,11.14310365]
[1770466569039,11.18676711,2054.6,2052.7,11.14310365]
[1770466569333,0.20675578,2054.5,2053.7,11.14310365]
[1770466569634,11.18676711,2055.9,2054.1,11.14310365]
[1770466569837,11.18676711,2055.9,2054.1,11.38675365]
[1770466570137,11.77779829,2055.7,2053.9,11.23132919]
[1770466570331,1.11946,2056.6,2051.8,1.12202]
[1770466570332,11.77779829,2055.3,2052.7,4.009962]
[1770466570634,11.78361459,2055.3,2053.6,11.23132919]
[1770466570836,11.78361459,2055.3,2052.8,11.23132919]
[1770466570837,11.77779829,2054.8,2052.8,11.23132919]
[1770466571033,11.77779829,2054.4,2052.8,11.23132919]
[1770466571231,11.77779829,2054.1,2052.7,0.00532405]
[1770466571939,11.77779829,2054.1,2052.7,11.23665324]
[1770466572535,11.77779829,2054.5,2052.7,11.23665324]
[1770466572834,11.77779829,2053.8,2052.4,5.6490102]
[1770466573026,11.77779829,2053.7,2052.5,11.23132919]
[1770466573227,11.77779829,2053.7,2051.6,11.23132919]
[1770466573833,11.78232057,2053.7,2051.6,11.23543585]
[1770466574033,11.78232057,2053.7,2052.0,11.23132919]
[1770466574233,11.78232057,2053.7,2051.6,11.23543585]
[1770466574540,11.77779829,2052.9,2051.6,0.00410666]
[1770466574731,11.77779829,2052.5,2050.4,11.23132919]
[1770466574927,11.77779829,2052.5,2050.5,0.24407]
[1770466575138,11.77779829,2052.5,2050.8,11.23132919]
[1770466575634,11.77779829,2052.5,2050.8,11.23613715]
[1770466576039,11.77779829,2052.5,2051.1,11.23132919]
[1770466576235,11.77779829,2052.5,2050.8,11.23613715]
[1770466576432,11.77779829,2052.5,2050.8,11.48017715]
[1770466576737,11.77779829,2053.2,2051.0,11.47534919]
[1770466577140,11.77779829,2053.2,2051.0,11.23132919]
[1770466578043,0.24375,2053.3,2051.1,11.23132919]
[1770466578044,11.77779829,2052.6,2051.1,11.23132919]
[1770466578833,11.77779829,2053.2,2051.5,11.23132919]
[1770466580538,11.77779829,2053.1,2051.5,11.23132919]
[1770466581337,11.77779829,2053.6,2052.1,11.23132919]
[1770466582039,0.00452228,2053.7,2052.5,11.23132919]
[1770466582337,11.77779829,2055.7,2053.3,11.23132919]
[1770466582843,11.77779829,2055.3,2053.3,11.47506919]
[1770466583037,11.77779829,2055.6,2054.0,4.00463795]
[1770466583241,11.77779829,2056.7,2054.9,11.23132919]
[1770466583544,0.24329,2057.2,2054.9,11.47487919]
[1770466583837,11.77779829,2057.4,2055.8,11.23132919]
[1770466584239,11.78141348,2057.4,2055.9,11.23132919]
[1770466584442,11.78141348,2057.4,2055.8,0.00387838]
[1770466584443,16.02931143,2057.4,2055.8,0.00387838]
[1770466584638,16.02931143,2057.4,2055.1,11.23132919]
[1770466584639,11.77779829,2056.9,2055.1,11.23132919]
[1770466584944,11.77779829,2056.1,2054.4,11.23132919]
[1770466585244,4.00463795,2056.6,2053.0,3.93397187]
[1770466585245,11.77779829,2056.6,2054.7,11.23132919]
[1770466585742,11.77779829,2057.1,2055.6,11.23132919]
[1770466586345,11.77779829,2056.8,2055.0,11.23132919]
[1770466587044,11.77779829,2056.6,2055.0,11.23132919]
[1770466587244,11.77779829,2057.0,2055.3,4.00463795]
[1770466587446,11.77779829,2057.3,2055.8,11.23132919]
[1770466588335,11.77779829,2057.3,2055.6,11.23132919]
[1770466588537,11.77779829,2056.7,2054.9,11.23132919]
[1770466588738,11.77779829,2056.7,2055.2,11.23132919]
[1770466588938,11.77779829,2056.5,2054.8,11.23132919]
[1770466589246,0.24336,2056.6,2054.7,0.00469509]
[1770466589247,11.77779829,2056.1,2054.7,0.00469509]
[1770466589740,11.77779829,2056.8,2055.5,11.23132919]
[1770466590136,11.77779829,2056.8,2055.5,11.47480919]
[1770466590342,11.77779829,2057.1,2055.7,11.47478919]
[1770466590541,11.77779829,2057.1,2055.2,11.23132919]
[1770466590736,11.77779829,2057.1,2055.2,11.47483919]
[1770466591138,0.02407408,2057.5,2056.1,11.23132919]
[1770466591638,11.78141348,2057.4,2056.1,11.23132919]
[1770466591838,11.77779829,2057.3,2055.5,11.23132919]
[1770466592443,11.77779829,2057.0,2055.5,11.23132919]
[1770466592647,11.77779829,2057.0,2055.2,11.23132919]
[1770466592841,11.77779829,2057.3,2055.7,11.23132919]
[1770466593040,11.77779829,2057.3,2055.9,11.23132919]
[1770466593248,0.00361519,2057.4,2056.2,11.23132919]
[1770466593547,0.00361519,2057.4,2056.4,11.23132919]
[1770466593741,0.00361519,2057.4,2056.6,11.23132919]
[1770466593938,11.86238945,2059.3,2057.1,11.23132919]
[1770466594247,11.77779829,2058.9,2057.2,11.23132919]
[1770466594644,11.77779829,2058.3,2056.6,11.23132919]
[1770466594845,11.77779829,2058.1,2056.6,11.23132919]
[1770466595041,11.77779829,2058.1,2056.2,11.47895312]
[1770466595648,11.77779829,2058.1,2056.5,11.23132919]
[1770466595847,11.77779829,2058.1,2056.5,11.47468919]
[1770466596043,11.77779829,2058.1,2056.5,11.23132919]
[1770466596840,10.72063506,2057.9,2056.5,11.23132919]
[1770466597240,10.72063506,2057.6,2056.2,0.00423393]
[1770466597447,10.72063506,2057.3,2056.2,11.15926261]
[1770466597752,10.72063506,2057.3,2056.2,0.00423393]
[1770466598052,10.72063506,2057.2,2055.4,11.15502868]
[1770466598444,10.72063506,2056.8,2055.1,5.4230311]
[1770466598648,10.72063506,2056.4,2055.0,11.15502868]
[1770466599053,10.7264115,2056.4,2055.0,11.16115933]
[1770466599250,10.72063506,2056.0,2054.6,11.15502868]
[1770466599456,10.72063506,2055.6,2053.2,11.15502868]
[1770466599648,10.72063506,2054.6,2052.9,11.15502868]
[1770466599850,10.72063506,2054.2,2052.4,0.24384]
[1770466600050,10.72063506,2054.2,2052.5,11.15502868]
[1770466600251,10.72635961,2054.2,2052.5,11.16066375]
[1770466600455,10.72635961,2054.2,2051.7,4.00463795]
[1770466600456,10.72063506,2053.4,2051.7,11.15502868]
[1770466600756,0.00572455,2054.2,2051.8,11.15502868]
[1770466600757,10.72063506,2053.9,2051.8,11.15502868]
[1770466600950,10.72063506,2053.5,2051.8,11.15502868]
[1770466601151,10.72063506,2053.1,2050.8,11.39905868]
[1770466601355,10.72063506,2053.1,2051.2,11.15502868]
[1770466601555,10.72063506,2053.5,2051.4,11.15502868]
[1770466601751,10.72063506,2053.5,2052.0,11.39892868]
[1770466602149,10.72063506,2053.9,2052.0,11.39892868]
[1770466602354,10.72063506,2053.9,2052.3,11.15502868]
[1770466602755,10.72063506,2053.9,2051.6,11.15502868]
[1770466603056,10.72063506,2053.7,2051.6,11.15502868]
[1770466603354,10.72063506,2054.0,2052.4,11.15502868]
[1770466603554,10.72063506,2054.0,2052.5,11.15502868]
[1770466603958,10.72635961,2054.2,2052.5,11.15502868]
[1770466604859,10.72635961,2054.2,2052.7,11.15502868]
[1770466605057,10.72635961,2054.2,2052.7,11.16060473]
[1770466605358,10.72635961,2054.2,2052.8,11.15502868]
[1770466605561,10.72635961,2054.2,2052.7,0.00557605]
[1770466605961,10.72635961,2054.2,2052.7,11.16060473]
[1770466606461,0.00572455,2054.2,2053.1,11.15502868]
[1770466606854,10.72063506,2054.8,2052.8,0.2438]
[1770466607053,10.72063506,2054.7,2052.9,11.15502868]
[1770466607858,10.72416657,2054.7,2052.9,11.15502868]
[1770466608259,10.72063506,2054.3,2052.7,0.00557605]
[1770466608660,10.72063506,2054.3,2052.7,11.16060473]
[1770466609252,10.72063506,2054.3,2052.9,11.39881868]
[1770466609459,0.00353151,2054.7,2053.4,11.39875868]
[1770466609460,10.72063506,2054.6,2053.4,11.39875868]
[1770466609760,0.24345,2055.8,2052.9,4.00463795]
[1770466609761,10.72063506,2056.3,2054.3,11.15502868]
[1770466609955,10.72063506,2056.3,2054.5,11.15502868]
[1770466610457,10.72063506,2056.0,2053.7,4.00463795]
[1770466610663,10.72063506,2055.4,2053.8,11.15502868]
[1770466611157,10.72063506,2055.8,2054.1,11.15502868]
[1770466611554,10.72063506,2055.6,2053.8,11.39870868]
[1770466611757,10.72063506,2055.6,2053.8,11.15502868]
[1770466611958,10.96411506,2055.6,2053.8,11.15502868]
[1770466612161,10.72063506,2055.4,2053.7,0.00473467]
[1770466612366,10.72063506,2055.2,2053.7,0.00473467]
[1770466612566,10.72063506,2055.2,2053.7,11.15976335]
[1770466613060,14.72527301,2055.2,2053.7,0.00473467]
[1770466613262,10.72063506,2055.1,2053.7,0.00473467]
[1770466613459,4.00463795,2055.2,2053.0,11.15502868]
[1770466613460,10.72063506,2054.7,2053.0,11.15502868]
[1770466613662,10.72063506,2054.3,2052.6,11.15502868]
[1770466614055,10.72063506,2054.3,2052.6,11.39884868]
[1770466614461,10.72668262,2054.3,2052.6,11.40474046]
[1770466614862,10.72668262,2054.3,2052.9,11.15502868]
[1770466615763,10.72668262,2054.3,2052.9,11.39881868]
[1770466616064,0.00604756,2054.3,2053.3,11.15502868]
[1770466616472,10.72668262,2054.3,2053.0,11.15502868]
[1770466616966,10.72668262,2054.3,2053.0,11.39880868]
[1770466617169,10.72668262,2054.3,2052.6,0.00589178]
[1770466617170,10.72668262,2054.3,2053.2,11.15502868]
[1770466617570,0.00604756,2054.3,2053.7,11.39871868]
[1770466617868,10.72063506,2055.1,2053.7,11.39871868]
[1770466618165,10.72063506,2055.1,2053.1,11.15502868]
[1770466618559,10.72063506,2054.9,2053.1,11.15502868]
[1770466618765,10.72063506,2054.6,2052.7,11.15502868]
[1770466618968,10.72505023,2054.6,2053.1,11.15502868]
[1770466620373,10.72505023,2054.6,2053.3,11.15502868]
[1770466620666,10.72505023,2054.6,2053.6,11.15502868]
[1770466620868,10.72063506,2054.9,2053.8,11.15502868]
[1770466621470,10.72063506,2054.9,2053.4,11.15502868]
[1770466621666,10.96419506,2054.9,2053.1,0.24376]
[1770466622469,10.72063506,2054.6,2052.7,11.15502868]
[1770466622770,10.72063506,2054.3,2052.7,11.15502868]
[1770466623366,10.72063506,2054.0,2052.6,0.00589178]
[1770466623568,10.72063506,2053.7,2052.6,0.00589178]
[1770466624073,10.72063506,2053.7,2052.0,11.15502868]
[1770466624272,10.72063506,2053.7,2052.3,11.15502868]
[1770466624866,10.72063506,2053.5,2052.3,0.00599024]
[1770466625263,10.72063506,2053.5,2052.3,11.16101892]
[1770466625764,10.72063506,2053.5,2052.3,0.00599024]
[1770466625970,11.09351038,2053.3,2052.3,0.00599024]
[1770466626569,11.09351038,2053.3,2052.3,11.01915272]
[1770466627074,11.09351038,2053.6,2052.3,11.01915272]
[1770466627278,11.09351038,2053.6,2052.3,0.00599024]
[1770466627774,11.33730038,2053.0,2051.3,11.01316248]
[1770466627969,11.09351038,2053.0,2051.3,11.01316248]
[1770466628472,11.09351038,2053.0,2051.3,11.25714248]
[1770466628777,11.09351038,2053.0,2051.3,11.26275668]
[1770466629274,11.09351038,2053.0,2051.5,11.01316248]
[1770466630176,11.20625268,2053.3,2052.0,11.74952179]
[1770466630575,11.20625268,2053.8,2052.0,11.99342179]
[1770466632076,11.20625268,2053.6,2051.7,11.74952179]
[1770466632772,11.20625268,2053.2,2051.7,11.99345179]
[1770466632976,11.20625268,2053.5,2051.9,11.74952179]
[1770466633177,11.20625268,2053.5,2052.1,11.74952179]
[1770466633475,11.20625268,2053.5,2052.1,11.99341179]
[1770466633877,11.20625268,2053.5,2052.2,11.74952179]
[1770466634173,11.20625268,2053.8,2052.2,11.74952179]
[1770466634476,11.20625268,2053.8,2052.2,14.46848686]
[1770466635272,11.20625268,2053.8,2052.2,11.74952179]
[1770466635581,11.20625268,2053.3,2051.9,11.74952179]
[1770466636170,11.20625268,2052.8,2051.6,11.74952179]
[1770466636467,11.21102042,2052.8,2051.6,11.74952179]
[1770466636663,11.21102042,2052.8,2051.3,11.75513599]
[1770466636870,11.20625268,2052.1,2050.7,7.60732803]
[1770466637471,11.45014268,2052.1,2050.3,7.60732803]
[1770466637671,11.20625268,2052.1,2050.3,7.60732803]
[1770466637871,11.20625268,2052.1,2050.5,7.60732803]
[1770466638269,0.24857774,2052.8,2050.8,7.85136803]
[1770466638473,11.20625268,2052.4,2050.8,7.85136803]
[1770466638875,11.20625268,2052.4,2051.0,7.62972136]
[1770466639070,11.20625268,2052.4,2051.2,7.62972136]
[1770466639266,11.20625268,2052.7,2051.2,7.87371136]
[1770466640165,11.20625268,2052.7,2050.8,7.62972136]
[1770466640570,11.20625268,2052.7,2051.0,7.60168154]
[1770466640976,11.20625268,2052.7,2051.0,7.84569154]
[1770466641877,11.20625268,2052.7,2051.2,7.60168154]
[1770466642078,11.20625268,2052.7,2051.2,7.84567154]
[1770466642284,11.20625268,2052.7,2051.4,7.60168154]
[1770466644176,0.00476774,2052.8,2051.8,7.62973622]
[1770466644368,11.20625268,2053.3,2051.9,7.6130014]
[1770466644773,11.44985268,2054.5,2052.6,7.8568214]
[1770466644972,11.44985268,2054.5,2052.7,0.24381]
[1770466645179,11.20625268,2054.5,2053.2,7.6130014]
[1770466645376,11.21038461,2054.5,2053.2,7.8567514]
[1770466645581,0.00413193,2054.5,2053.4,7.6130014]
[1770466645781,0.00413193,2054.5,2053.4,7.61764465]
[1770466646077,11.21038461,2054.5,2053.4,7.61764465]
[1770466646484,0.00413193,2054.5,2053.4,7.86137465]
[1770466646683,11.20625268,2055.1,2054.0,7.64309459]
[1770466646985,11.20625268,2055.1,2053.4,7.64773784]
[1770466647176,11.44979268,2055.1,2053.4,7.64773784]
[1770466647773,11.21215694,2055.1,2053.4,7.89146784]
[1770466648774,11.21215694,2055.1,2053.4,0.00464325]
[1770466648981,11.20625268,2054.9,2053.4,0.00464325]
[1770466649281,11.20625268,2054.7,2053.4,0.00464325]
[1770466649489,11.20625268,2054.2,2052.3,0.24386]
[1770466649689,11.20625268,2054.0,2052.2,7.65325117]
[1770466649885,11.20625268,2054.0,2052.5,0.24384]
[1770466650083,11.20625268,2054.0,2052.9,7.65325117]
[1770466650282,11.20625268,2054.3,2052.9,7.89704117]
[1770466650581,11.20625268,2054.3,2052.9,7.90126922]
[1770466650782,11.20625268,2055.0,2053.2,7.48352315]
[1770466651189,11.20625268,2055.0,2053.4,7.48352315]
[1770466651389,11.20625268,2055.0,2053.4,7.72725315]
[1770466651686,11.20625268,2055.0,2053.1,2.71896507]
[1770466651687,11.20625268,2055.0,2053.1,7.48352315]
[1770466652082,11.20625268,2055.0,2053.1,7.72729315]
[1770466652278,11.20625268,2055.0,2053.5,7.55463702]
[1770466652885,0.00590426,2055.1,2054.2,7.55463702]
[1770466653084,11.20625268,2055.6,2054.6,7.55463702]
[1770466653286,0.24332,2056.9,2055.0,7.79816702]
[1770466653480,11.20625268,2056.8,2055.0,7.55463702]
[1770466653789,11.20625268,2056.8,2055.2,7.55463702]
[1770466654095,11.20625268,2056.3,2054.5,7.55463702]
[1770466654279,11.44964268,2056.3,2054.2,7.58035191]
[1770466654886,11.44964268,2056.3,2054.4,7.58035191]
[1770466655186,11.20625268,2056.0,2054.4,0.00493958]
[1770466655384,11.44967268,2056.0,2054.4,0.00493958]
[1770466655886,3.99336895,2056.8,2054.4,0.00493958]
[1770466655887,10.89239495,2055.8,2054.4,0.00493958]
[1770466656386,11.13584495,2055.8,2054.4,0.00493958]
[1770466656985,10.89239495,2055.8,2054.4,0.00493958]
[1770466657389,10.89239495,2055.8,2054.4,8.1093112]
[1770466657589,11.13593495,2055.0,2053.3,5.44874395]
[1770466657888,3.98790435,2055.6,2052.6,7.8657012]
[1770466657889,10.89239495,2054.3,2052.6,7.8657012]
[1770466658492,10.89671842,2054.3,2052.6,7.87141201]
[1770466658895,10.89239495,2054.0,2052.6,0.00571081]
[1770466659093,10.89239495,2054.0,2052.6,11.27430114]
[1770466660289,10.89671842,2054.3,2052.6,11.27430114]
[1770466660488,10.89671842,2054.3,2052.8,11.26859033]
[1770466661789,0.00432347,2054.3,2053.0,11.26859033]
[1770466661998,10.89239495,2054.2,2053.0,5.51493491]
[1770466662289,10.89239495,2053.4,2052.0,11.26859033]
[1770466663289,10.89239495,2053.4,2052.0,11.27284943]
[1770466666096,10.89239495,2053.7,2052.0,11.51674943]
[1770466666992,0.24375,2053.3,2051.6,11.26859033]
[1770466667198,10.89239495,2053.2,2051.6,11.26859033]
[1770466667798,10.89239495,2054.0,2051.6,11.26859033]
[1770466668098,10.89239495,2053.4,2051.6,11.27227708]
[1770466669400,10.89239495,2053.4,2051.8,11.26859033]
[1770466670791,11.13613495,2053.4,2051.8,11.26859033]
[1770466670998,11.13613495,2053.4,2051.6,0.00368675]
[1770466671597,10.89239495,2053.2,2051.6,0.00368675]
[1770466671799,11.13615495,2053.2,2051.6,0.00368675]
[1770466671995,10.89239495,2053.0,2051.6,0.00368675]
[1770466673403,10.89239495,2053.0,2051.6,11.27227708]
[1770466675105,5.25436401,2053.3,2051.9,11.26859033]
[1770466675106,10.89239495,2053.3,2051.9,11.26859033]
[1770466675495,10.89239495,2053.6,2051.9,11.51249033]
[1770466676399,10.89239495,2053.6,2052.2,11.26859033]
[1770466677507,10.89239495,2053.6,2052.3,11.26859033]
[1770466678806,10.89239495,2054.2,2052.7,11.26859033]
[1770466679000,10.89239495,2054.2,2052.1,13.9875554]
[1770466679204,11.13608495,2053.8,2052.3,11.26859033]
[1770466679703,10.89239495,2053.6,2052.3,11.26859033]
[1770466679903,11.13610495,2053.6,2052.3,11.26859033]
[1770466680204,11.13610495,2053.6,2051.9,11.26859033]
[1770466680606,10.89239495,2053.4,2051.9,11.26859033]
[1770466680998,10.89239495,2053.4,2051.6,11.27227708]
[1770466681203,10.89239495,2052.7,2051.6,0.00368675]
[1770466681503,10.89607807,2052.7,2050.5,11.26859033]
[1770466681702,10.89239495,2052.5,2050.5,11.26859033]
[1770466681903,10.89239495,2052.5,2050.7,11.51264033]
[1770466682505,10.89239495,2052.5,2050.7,11.27105442]
[1770466682710,10.89239495,2052.5,2050.7,11.51510442]
[1770466683004,10.89239495,2052.5,2050.9,11.26859033]
[1770466683209,10.89239495,2052.5,2051.3,11.51256033]
[1770466683512,0.00368312,2052.7,2051.7,11.26859033]
[1770466684204,10.89607807,2052.7,2051.7,11.26859033]
[1770466684411,10.89607807,2052.7,2051.4,11.26859033]
[1770466684810,10.89607807,2052.7,2051.1,11.51259033]
[1770466685414,10.89607807,2052.7,2050.8,11.26859033]
[1770466685612,11.13989807,2052.7,2050.8,11.26859033]
[1770466686813,10.89607807,2052.7,2050.9,11.41005611]
[1770466687108,10.89607807,2052.7,2051.3,11.41005611]
[1770466688709,0.31752215,2053.7,2051.3,11.41005611]
[1770466688710,11.55402983,2053.3,2051.9,11.41005611]
[1770466689010,5.07439471,2053.5,2051.9,11.41005611]
[1770466689217,5.07439471,2053.5,2052.3,11.41005611]
[1770466689508,3.98949594,2054.3,2053.0,11.41005611]
[1770466689509,11.55402983,2054.3,2053.0,11.41005611]
[1770466689707,11.55861256,2054.3,2053.0,11.41620332]
[1770466690221,0.00458273,2054.3,2053.1,10.62554582]
[1770466690510,0.00458273,2054.3,2053.3,10.62554582]
[1770466690716,11.16417007,2054.3,2053.0,10.63169303]
[1770466690911,11.15692695,2054.3,2053.0,10.63169303]
[1770466691417,11.15958734,2054.6,2053.1,10.62554582]
[1770466691916,0.00631856,2054.6,2053.3,10.62554582]
[1770466692917,0.00631856,2054.6,2053.3,10.86928582]
[1770466693310,11.15958734,2056.0,2054.6,10.62554582]
[1770466693711,3.98949594,2057.2,2054.6,10.62554582]
[1770466693919,11.15958734,2056.3,2054.9,10.62554582]
[1770466694321,0.00370195,2056.3,2055.3,10.62554582]
[1770466694515,11.15958734,2056.9,2055.3,10.62554582]
[1770466694915,11.15958734,2056.5,2054.9,10.63024832]
[1770466695217,11.15958734,2056.5,2055.2,10.62554582]
[1770466695517,11.16425271,2056.5,2055.2,10.62554582]
[1770466695717,11.16425271,2056.5,2054.9,0.0047025]
[1770466696216,11.15958734,2056.1,2054.9,0.0047025]
[1770466696620,11.16425271,2056.5,2054.9,10.87379832]
[1770466697011,11.16425271,2056.5,2055.1,10.62554582]
[1770466697724,0.00466537,2056.5,2055.4,10.62554582]
[1770466699519,11.16425271,2056.5,2055.4,10.62554582]
[1770466699818,11.16425271,2056.5,2055.1,10.62554582]